bitfinex/quotes_BTCUSD_20250529
["timestamp","ask_amount","ask_price","bid_price","bid_amount"]
[1748516310363,0.0822242,108790.0,108780.0,21.02246279]
[1748516310573,0.0822242,108790.0,108780.0,20.62246279]
[1748516310787,0.0622242,108790.0,108780.0,20.62246279]
[1748516313586,0.0622242,108790.0,108780.0,20.6132701]
[1748516313825,0.0622242,108790.0,108780.0,20.5889701]
[1748516314075,0.0622242,108790.0,108780.0,20.59816279]
[1748516314293,0.0622242,108790.0,108780.0,20.5639701]
[1748516314506,0.0622242,108790.0,108780.0,20.9639701]
[1748516314507,0.35955561,108790.0,108780.0,20.9639701]
[1748516315797,0.35955561,108790.0,108780.0,20.76972]
[1748516316664,0.35955561,108790.0,108780.0,20.77891286]
[1748516317513,0.35955561,108790.0,108780.0,20.36952]
[1748516317999,0.33955561,108790.0,108780.0,20.36952]
[1748516318218,0.37668383,108790.0,108780.0,20.36952]
[1748516320046,0.0422242,108790.0,108780.0,20.36952]
[1748516320260,0.3395135,108790.0,108780.0,20.36952]
[1748516323678,0.3901135,108790.0,108780.0,20.36952]
[1748516323899,0.3901135,108790.0,108780.0,20.08]
[1748516324773,0.0928242,108790.0,108780.0,20.08]
[1748516325003,0.0422242,108790.0,108780.0,20.08]
[1748516325218,0.48112972,108790.0,108780.0,20.08]
[1748516329852,0.53222972,108790.0,108780.0,20.08]
[1748516330058,0.53222972,108790.0,108780.0,20.36832]
[1748516331369,0.87222972,108790.0,108780.0,20.36832]
[1748516331592,0.87222972,108790.0,108780.0,20.08]
[1748516332259,0.85222972,108790.0,108780.0,20.08]
[1748516333592,0.94328367,108790.0,108780.0,20.08]
[1748516335540,1.23132367,108790.0,108780.0,20.08]
[1748516338269,0.95403437,108790.0,108780.0,20.08]
[1748516338489,1.25132367,108790.0,108780.0,20.08]
[1748516339415,1.23132367,108790.0,108780.0,20.08]
[1748516341235,1.23064367,108790.0,108780.0,20.08]
[1748516342097,1.26782739,108790.0,108780.0,20.08]
[1748516342943,1.21652739,108790.0,108780.0,20.08]
[1748516343818,0.64489437,108790.0,108780.0,20.08]
[1748516344039,1.24054739,108790.0,108780.0,20.08]
[1748516344256,0.90607437,108790.0,108780.0,20.08]
[1748516344486,1.24054739,108790.0,108780.0,20.08]
[1748516344967,1.89636246,108790.0,108780.0,19.79649975]
[1748516345188,1.58960737,108790.0,108780.0,19.79649975]
[1748516345636,1.89338753,108790.0,108780.0,19.46612763]
[1748516345858,1.88528753,108790.0,108780.0,19.41532763]
[1748516346305,1.86528753,108790.0,108780.0,19.41532763]
[1748516347167,1.8652482,108790.0,108780.0,19.41532763]
[1748516347602,1.4028847,108790.0,108780.0,19.3867995]
[1748516347810,1.7807647,108790.0,108780.0,19.3867995]
[1748516348028,1.37826227,108790.0,108780.0,19.35011123]
[1748516348524,1.40929992,108790.0,108780.0,19.35011123]
[1748516348748,1.37826227,108790.0,108780.0,19.09513911]
[1748516349172,1.67576702,108790.0,108780.0,19.09513911]
[1748516349617,1.37826227,108790.0,108780.0,19.09513911]
[1748516351133,1.37826227,108790.0,108780.0,19.02992271]
[1748516351558,1.40656941,108790.0,108780.0,19.02992271]
[1748516351765,1.43428734,108790.0,108780.0,19.02992271]
[1748516352683,1.46187734,108790.0,108780.0,19.02992271]
[1748516352909,1.16437259,108790.0,108780.0,19.02992271]
[1748516353131,1.46187734,108790.0,108780.0,19.02992271]
[1748516353354,1.46187734,108790.0,108780.0,18.77495059]
[1748516353565,1.73938209,108790.0,108780.0,18.77495059]
[1748516353984,1.73938209,108790.0,108780.0,18.70973419]
[1748516354196,1.73938209,108790.0,108780.0,18.48762517]
[1748516354413,1.73938209,108790.0,108780.0,18.4802732]
[1748516354851,1.73938209,108790.0,108780.0,18.47292123]
[1748516354852,1.78938209,108790.0,108780.0,18.47292123]
[1748516355277,1.88619209,108790.0,108780.0,18.46556926]
[1748516355733,1.84449209,108790.0,108780.0,18.33703226]
[1748516355956,1.84449209,108790.0,108780.0,16.84356561]
[1748516355957,6.88025003,108790.0,108780.0,16.84356561]
[1748516356173,6.88025003,108790.0,108780.0,16.83621364]
[1748516356419,6.91261508,108790.0,108780.0,16.83621364]
[1748516356634,6.91261508,108790.0,108780.0,16.79669678]
[1748516356853,6.91261508,108790.0,108780.0,16.71804184]
[1748516357062,6.91261508,108790.0,108780.0,16.61099534]
[1748516357271,6.92727812,108790.0,108780.0,16.35557125]
[1748516357516,6.92727812,108790.0,108780.0,16.34821928]
[1748516357937,6.89491307,108790.0,108780.0,16.30870242]
[1748516358367,6.89491307,108790.0,108780.0,16.30135045]
[1748516358809,6.89491307,108790.0,108780.0,16.26113538]
[1748516359019,6.89491307,108790.0,108780.0,16.23342925]
[1748516359228,6.89491307,108790.0,108780.0,16.22607728]
[1748516359661,6.89491307,108790.0,108780.0,16.10628686]
[1748516360131,6.89487185,108790.0,108780.0,15.81896144]
[1748516360617,6.92718495,108790.0,108780.0,15.81896144]
[1748516360840,6.87487185,108790.0,108780.0,15.81896144]
[1748516361765,6.60871321,108790.0,108780.0,15.81896144]
[1748516363556,6.56172428,108790.0,108780.0,15.81896144]
[1748516363774,6.60861936,108790.0,108780.0,15.81896144]
[1748516364238,6.60761936,108790.0,108780.0,15.81896144]
[1748516364449,6.31011461,108790.0,108780.0,15.81896144]
[1748516364670,6.31810967,108790.0,108780.0,15.81996144]
[1748516365367,6.33050967,108790.0,108780.0,15.81996144]
[1748516365572,6.58723224,108790.0,108780.0,15.34768166]
[1748516365783,6.61495017,108790.0,108780.0,15.34768166]
[1748516366199,6.62195017,108790.0,108780.0,15.34868166]
[1748516367296,6.63654967,108790.0,108780.0,15.34868166]
[1748516368462,6.63642967,108790.0,108780.0,15.34868166]
[1748516368881,6.23134425,108790.0,108780.0,15.34868166]
[1748516369131,6.24585717,108790.0,108780.0,15.34868166]
[1748516369584,5.8699386,108790.0,108780.0,15.34868166]
[1748516369806,6.15570791,108790.0,108780.0,15.34868166]
[1748516370024,6.17024876,108790.0,108780.0,15.34868166]
[1748516370256,6.22024876,108790.0,108780.0,15.34868166]
[1748516370505,0.81910791,108790.0,108780.0,15.34868166]
[1748516370739,1.07339876,108790.0,108780.0,15.34868166]
[1748516370961,1.02339876,108790.0,108780.0,15.34868166]
[1748516371186,1.02335876,108790.0,108780.0,15.34868166]
[1748516371889,1.02327876,108790.0,108780.0,15.34868166]
[1748516372974,1.07327876,108790.0,108780.0,15.34868166]
[1748516373199,1.02315876,108790.0,108780.0,15.34868166]
[1748516373635,1.07315876,108790.0,108780.0,15.34868166]
[1748516374495,1.08775826,108790.0,108780.0,15.34868166]
[1748516374969,0.66215826,108790.0,108780.0,15.34868166]
[1748516375188,1.03759826,108790.0,108780.0,15.34868166]
[1748516375408,1.10081619,108790.0,108780.0,15.34868166]
[1748516375632,1.08623048,108790.0,108780.0,15.32097971]
[1748516375845,1.08089178,108790.0,108780.0,15.29943376]
[1748516376663,0.70545178,108790.0,108780.0,15.29943376]
[1748516376915,1.08077178,108790.0,108780.0,15.29943376]
[1748516377148,0.70545178,108790.0,108780.0,15.29943376]
[1748516377373,1.08077178,108790.0,108780.0,15.29943376]
[1748516377859,1.08080901,108790.0,108780.0,15.29943376]
[1748516378341,1.04847635,108790.0,108780.0,15.29943376]
[1748516378841,1.03381505,108790.0,108780.0,15.29943376]
[1748516379028,1.03365505,108790.0,108780.0,15.29943376]
[1748516380768,1.13034505,108790.0,108780.0,15.29943376]
[1748516380984,1.03365505,108790.0,108780.0,15.29943376]
[1748516381676,1.08365505,108790.0,108780.0,15.29943376]
[1748516381888,6.13617298,108790.0,108780.0,15.29943376]
[1748516382105,6.13621049,108790.0,108780.0,15.29943376]
[1748516382383,6.17750889,108790.0,108780.0,15.29943376]
[1748516382842,6.20581603,108790.0,108780.0,15.29943376]
[1748516383069,6.18581603,108790.0,108780.0,15.29943376]
[1748516384484,6.23581603,108790.0,108780.0,15.29943376]
[1748516384716,6.18581603,108790.0,108780.0,15.29943376]
[1748516385110,6.23581603,108790.0,108780.0,15.29943376]
[1748516385360,6.18581603,108790.0,108780.0,15.29943376]
[1748516385581,6.22789945,108790.0,108780.0,15.29943376]
[1748516386734,6.22789945,108790.0,108780.0,15.28378376]
[1748516387018,6.22789945,108790.0,108780.0,15.23093438]
[1748516387187,6.18581603,108790.0,108780.0,15.1849719]
[1748516387846,6.18581603,108790.0,108780.0,15.1394619]
[1748516388067,6.18581603,108790.0,108780.0,15.09349942]
[1748516388317,6.18581603,108790.0,108780.0,15.08843942]
[1748516388996,6.18581603,108790.0,108780.0,14.99651446]
[1748516389210,6.18581603,108790.0,108780.0,14.95055198]
[1748516389420,6.18581603,108790.0,108780.0,14.9045895]
[1748516389636,6.18581603,108790.0,108780.0,14.85862702]
[1748516389856,6.18581603,108790.0,108780.0,14.81266454]
[1748516390098,6.14197561,108790.0,108780.0,14.76670206]
[1748516390341,6.32581603,108790.0,108780.0,14.72073958]
[1748516390572,6.32581603,108790.0,108780.0,14.6747771]
[1748516390819,6.32581603,108790.0,108780.0,14.61967462]
[1748516390820,6.32606598,108790.0,108780.0,14.61967462]
[1748516391038,6.32606598,108790.0,108780.0,14.58533462]
[1748516391254,6.32606598,108790.0,108780.0,14.53937214]
[1748516391678,6.32606598,108790.0,108780.0,14.53088214]
[1748516391901,6.32606598,108790.0,108780.0,14.43895718]
[1748516392143,6.32606598,108790.0,108780.0,14.39299744]
[1748516392354,6.32606598,108790.0,108780.0,14.36531744]
[1748516392807,6.32606598,108790.0,108780.0,14.27339796]
[1748516393017,6.32606598,108790.0,108780.0,14.22743822]
[1748516393238,6.32606598,108790.0,108780.0,14.20371823]
[1748516393473,6.32606598,108790.0,108780.0,14.15775849]
[1748516393686,6.32606598,108790.0,108780.0,14.10502875]
[1748516393918,6.32606598,108790.0,108780.0,14.05906901]
[1748516394133,6.32606598,108790.0,108780.0,14.01310927]
[1748516394361,6.32606598,108790.0,108780.0,13.96714953]
[1748516394580,6.32606598,108790.0,108780.0,13.92118979]
[1748516394837,6.32606598,108790.0,108780.0,13.8895118]
[1748516395046,6.32606598,108790.0,108780.0,13.84355206]
[1748516395276,6.25354383,108790.0,108780.0,13.79759232]
[1748516395505,6.3260898,108790.0,108780.0,13.75163258]
[1748516395725,6.3260898,108790.0,108780.0,13.73008373]
[1748516395934,6.3260898,108790.0,108780.0,13.71088374]
[1748516396164,6.3260898,108790.0,108780.0,13.664924]
[1748516396386,6.3260898,108790.0,108780.0,13.57301426]
[1748516397081,6.3260898,108790.0,108780.0,13.56175426]
[1748516397321,6.3060898,108790.0,108780.0,13.56175426]
[1748516398001,6.3052898,108790.0,108780.0,13.56175426]
[1748516399360,6.2928898,108790.0,108780.0,13.56175426]
[1748516399602,6.22362473,108790.0,108780.0,13.62115426]
[1748516400508,6.27362473,108790.0,108780.0,13.62115426]
[1748516400734,5.90010473,108790.0,108780.0,13.62115426]
[1748516400949,6.22362473,108790.0,108780.0,13.62115426]
[1748516401617,5.85010473,108790.0,108780.0,13.62115426]
[1748516401844,6.69126632,108790.0,108780.0,13.55671686]
[1748516402514,6.71906353,108790.0,108780.0,13.55671686]
[1748516403366,6.71906353,108790.0,108780.0,13.54747287]
[1748516403652,6.71906353,108790.0,108780.0,13.50151312]
[1748516403859,6.6913456,108790.0,108780.0,13.40959362]
[1748516404290,6.6713456,108790.0,108780.0,13.36469362]
[1748516404499,6.6713456,108790.0,108780.0,13.35985363]
[1748516405343,6.6713456,108790.0,108780.0,13.33214649]
[1748516405588,6.1676356,108790.0,108780.0,13.33214649]
[1748516405799,5.99153475,108790.0,108780.0,13.39514649]
[1748516406009,6.27661475,108790.0,108780.0,13.39514649]
[1748516406666,6.2911556,108790.0,108780.0,13.39514649]
[1748516407112,5.9176356,108790.0,108780.0,13.39514649]
[1748516407326,6.2911556,108790.0,108780.0,13.39514649]
[1748516408204,1.2411556,108790.0,108780.0,13.39514649]
[1748516408419,0.82615213,108790.0,108780.0,13.39514649]
[1748516408637,1.15740012,108790.0,108780.0,13.39514649]
[1748516408896,1.16219048,108790.0,108780.0,13.39514649]
[1748516409320,1.11219048,108790.0,108780.0,13.39514649]
[1748516409532,1.20446249,108790.0,108780.0,13.39514649]
[1748516411097,0.8693729,108790.0,108780.0,13.39514649]
[1748516411304,0.80710642,108790.0,108780.0,13.39514649]
[1748516411535,1.09218642,108790.0,108780.0,13.39514649]
[1748516412822,1.08739606,108790.0,108780.0,13.39514649]
[1748516413945,1.12966254,108790.0,108780.0,13.39514649]
[1748516415193,1.08739606,108790.0,108780.0,13.39514649]
[1748516415420,1.12965903,108790.0,108780.0,13.39514649]
[1748516415643,0.75613903,108790.0,108780.0,13.39514649]
[1748516415852,1.12965903,108790.0,108780.0,13.37360076]
[1748516416253,0.84457903,108790.0,108780.0,13.37360076]
[1748516416461,1.08739457,108790.0,108780.0,13.37360076]
[1748516416911,1.1151125,108790.0,108780.0,13.37360076]
[1748516417138,1.15737696,108790.0,108780.0,13.37360076]
[1748516417368,6.32476353,108790.0,108780.0,13.31060076]
[1748516417583,6.34586353,108790.0,108780.0,13.31060076]
[1748516417795,6.32955477,108790.0,108780.0,13.31060076]
[1748516418016,6.37103084,108790.0,108780.0,13.31060076]
[1748516418446,6.35103084,108790.0,108780.0,13.31060076]
[1748516418871,6.29500577,108790.0,108780.0,13.31060076]
[1748516419541,6.29501258,108790.0,108780.0,13.31060076]
[1748516420156,6.29501258,108790.0,108780.0,13.28289538]
[1748516420362,6.24299194,108790.0,108780.0,13.28289538]
[1748516421407,6.17040485,108790.0,108780.0,13.28289538]
[1748516421622,6.29501587,108790.0,108780.0,13.28289538]
[1748516422031,6.78961587,108790.0,108780.0,13.28289538]
[1748516423211,6.8384338,108790.0,108780.0,13.28289538]
[1748516423418,6.7884338,108790.0,108780.0,13.28289538]
[1748516423612,6.76734972,108790.0,108780.0,13.28289538]
[1748516424073,6.76735029,108790.0,108780.0,13.28289538]
[1748516425843,6.77710571,108790.0,108780.0,13.28289538]
[1748516426723,6.74735474,108790.0,108780.0,13.28289538]
[1748516427449,6.74735474,108790.0,108780.0,13.2437554]
[1748516429031,6.74735474,108790.0,108780.0,13.23895541]
[1748516430373,6.80913906,108790.0,108780.0,13.23895541]
[1748516431479,7.25625906,108790.0,108780.0,13.23895541]
[1748516431694,6.71165906,108790.0,108780.0,13.23895541]
[1748516431917,6.76165906,108790.0,108780.0,13.23895541]
[1748516432139,6.69987474,108790.0,108780.0,13.27085541]
[1748516433772,6.67987474,108790.0,108780.0,13.27085541]
[1748516435164,6.67987474,108790.0,108780.0,13.30215541]
[1748516435388,6.67987474,108790.0,108780.0,13.27444868]
[1748516435653,6.30635474,108790.0,108780.0,13.27444868]
[1748516435879,6.67983474,108790.0,108780.0,13.252899]
[1748516436797,6.65211681,108790.0,108780.0,13.252899]
[1748516437032,6.36707681,108790.0,108780.0,13.252899]
[1748516437266,6.65211681,108790.0,108780.0,13.252899]
[1748516440333,6.65211681,108790.0,108780.0,13.189699]
[1748516440808,6.34707681,108790.0,108780.0,13.189699]
[1748516441018,6.34707681,108790.0,108780.0,13.252799]
[1748516441244,6.63211681,108790.0,108780.0,13.252799]
[1748516441463,6.58211681,108790.0,108780.0,13.252799]
[1748516442279,6.29707681,108790.0,108780.0,13.252799]
[1748516442518,6.53008346,108790.0,108780.0,13.252799]
[1748516442750,6.21571737,108790.0,108780.0,13.252799]
[1748516442985,6.50075737,108790.0,108780.0,13.252799]
[1748516443219,6.21571737,108790.0,108780.0,13.252799]
[1748516443443,6.2579851,108790.0,108780.0,13.252799]
[1748516443849,6.50075737,108790.0,108780.0,13.252799]
[1748516444442,6.54302413,108790.0,108780.0,13.252799]
[1748516445349,6.50075737,108790.0,108780.0,13.252799]
[1748516445791,6.58211681,108790.0,108780.0,13.252799]
[1748516448012,6.51008346,108790.0,108780.0,13.252799]
[1748516449811,6.51006767,108790.0,108780.0,13.252799]
[1748516450291,6.10726158,108790.0,108780.0,13.22509576]
[1748516450521,6.48070158,108790.0,108780.0,13.22509576]
[1748516451028,6.60671767,108790.0,108780.0,13.22509576]
[1748516451242,6.51002767,108790.0,108780.0,13.22509576]
[1748516452548,6.48070158,108790.0,108780.0,13.22509576]
[1748516452763,6.51002767,108790.0,108780.0,13.22509576]
[1748516452975,6.71476033,108790.0,108780.0,13.22509576]
[1748516453184,6.71476033,108790.0,108780.0,13.16199576]
[1748516453619,6.58976319,108790.0,108780.0,13.16199576]
[1748516454046,6.63977845,108790.0,108780.0,13.16199576]
[1748516455161,6.45977845,108790.0,108780.0,13.16199576]
[1748516455792,6.45977845,108790.0,108780.0,13.14044674]
[1748516457084,6.79977845,108790.0,108780.0,13.14044674]
[1748516458521,6.34862052,108790.0,108780.0,13.20644674]
[1748516458657,6.66831976,108790.0,108780.0,13.20644674]
[1748516459524,6.68286061,108790.0,108780.0,13.20644674]
[1748516460164,6.68282061,108790.0,108780.0,13.20644674]
[1748516461208,6.68282169,108790.0,108780.0,13.20644674]
[1748516462068,6.66282169,108790.0,108780.0,13.20644674]
[1748516462932,6.28954169,108790.0,108780.0,13.20644674]
[1748516463138,6.66282169,108790.0,108780.0,13.20644674]
[1748516465290,6.66282169,108790.0,108780.0,13.17874498]
[1748516466123,6.37790169,108790.0,108780.0,13.17874498]
[1748516466341,6.66282169,108790.0,108780.0,13.17874498]
[1748516469182,6.64282169,108790.0,108780.0,13.17874498]
[1748516469824,6.65215936,108790.0,108780.0,13.17874498]
[1748516470557,6.26058477,108790.0,108780.0,13.17874498]
[1748516470773,6.63382477,108790.0,108780.0,13.17874498]
[1748516471438,6.34894477,108790.0,108780.0,13.17874498]
[1748516471665,6.63382477,108790.0,108780.0,13.17874498]
[1748516472370,1.21058477,108790.0,108780.0,13.17874498]
[1748516472605,1.49528181,108790.0,108780.0,13.17874498]
[1748516473083,1.21040181,108790.0,108780.0,13.17874498]
[1748516473308,1.49528181,108790.0,108780.0,13.17874498]
[1748516475147,1.53755192,108790.0,108780.0,13.17874498]
[1748516475650,1.53755192,108790.0,108780.0,13.15720075]
[1748516475873,1.49528181,108790.0,108780.0,13.15720075]
[1748516476104,1.47528181,108790.0,108780.0,13.15720075]
[1748516477324,1.54526985,108790.0,108780.0,13.15720075]
[1748516477784,1.46506421,108790.0,108780.0,13.15720075]
[1748516478013,1.4227941,108790.0,108780.0,13.15720075]
[1748516478704,1.46506421,108790.0,108780.0,13.15720075]
[1748516478939,1.4227941,108790.0,108780.0,13.15720075]
[1748516479176,1.46506421,108790.0,108780.0,13.15720075]
[1748516479402,1.55757543,108790.0,108780.0,13.15720075]
[1748516480790,1.55757543,108790.0,108780.0,13.25720075]
[1748516482920,1.55754267,108790.0,108780.0,13.25720075]
[1748516483544,1.53754267,108790.0,108780.0,13.25720075]
[1748516486130,1.53754267,108790.0,108780.0,13.22949984]
[1748516486341,1.16434267,108790.0,108780.0,13.22949984]
[1748516486559,1.53742267,108790.0,108780.0,13.22949984]
[1748516490649,1.60847662,108790.0,108780.0,13.22949984]
[1748516491887,1.60850566,108790.0,108780.0,13.22949984]
[1748516493824,1.65850566,108790.0,108780.0,13.22949984]
[1748516494039,1.60846566,108790.0,108780.0,13.22949984]
[1748516495786,1.60846566,108790.0,108780.0,13.20795469]
[1748516496224,1.23542566,108790.0,108780.0,13.20795469]
[1748516496448,1.51591444,108790.0,108780.0,13.20795469]
[1748516497727,1.49591444,108790.0,108780.0,13.20795469]
[1748516497940,1.52350544,108790.0,108780.0,13.20795469]
[1748516499019,1.21050544,108790.0,108780.0,13.20795469]
[1748516499236,1.56510153,108790.0,108780.0,13.20795469]
[1748516499486,1.61510153,108790.0,108780.0,13.20795469]
[1748516499702,1.62979624,108790.0,108780.0,13.20795469]
[1748516500594,1.25679602,108790.0,108780.0,13.20795469]
[1748516500826,1.61510131,108790.0,108780.0,13.20795469]
[1748516502113,1.61506131,108790.0,108780.0,13.20795469]
[1748516503381,1.62975149,108790.0,108780.0,13.20795469]
[1748516504689,1.61506131,108790.0,108780.0,13.20795469]
[1748516504893,1.6097669,108790.0,108780.0,13.20795469]
[1748516505103,1.59507744,108790.0,108780.0,13.20795469]
[1748516505800,1.63736703,108790.0,108780.0,13.20795469]
[1748516512005,1.61736703,108790.0,108780.0,13.20795469]
[1748516512931,1.53350297,108790.0,108780.0,13.20795469]
[1748516513155,1.53342297,108790.0,108780.0,13.20795469]
[1748516513586,1.53341987,108790.0,108780.0,13.20795469]
[1748516514269,1.49113207,108790.0,108780.0,13.20795469]
[1748516514482,1.53341987,108790.0,108780.0,13.20795469]
[1748516515126,1.62593109,108790.0,108780.0,13.20795469]
[1748516515812,1.62593109,108790.0,108780.0,13.18641112]
[1748516516780,1.58364329,108790.0,108780.0,13.18641112]
[1748516517470,1.62593109,108790.0,108780.0,13.18641112]
[1748516517935,1.62593631,108790.0,108780.0,13.18641112]
[1748516519077,1.47113428,108790.0,108780.0,13.18641112]
[1748516519302,1.48582354,108790.0,108780.0,13.18641112]
[1748516519971,1.09825428,108790.0,108780.0,13.18641112]
[1748516520197,1.47097428,108790.0,108780.0,13.18641112]
[1748516521149,1.47097429,108790.0,108780.0,13.18641112]
[1748516521379,1.56348551,108790.0,108780.0,13.18641112]
[1748516523162,1.55414784,108790.0,108780.0,13.18641112]
[1748516523781,1.18142784,108790.0,108780.0,13.18641112]
[1748516523991,1.55414784,108790.0,108780.0,13.18641112]
[1748516525037,1.55414767,108790.0,108780.0,13.18641112]
[1748516525921,1.59643826,108790.0,108780.0,13.18641112]
[1748516526300,1.57643826,108790.0,108780.0,13.18641112]
[1748516526500,1.48392704,108790.0,108780.0,13.18641112]
[1748516528922,1.11120704,108790.0,108780.0,13.18641112]
[1748516529123,1.48388704,108790.0,108780.0,13.18641112]
[1748516529324,1.48389103,108790.0,108780.0,13.18641112]
[1748516529554,1.57640225,108790.0,108780.0,13.18641112]
[1748516533427,1.55640225,108790.0,108780.0,13.18641112]
[1748516533935,1.5564119,108790.0,108780.0,13.18641112]
[1748516535742,1.51411345,108790.0,108780.0,13.16486754]
[1748516536339,1.5564119,108790.0,108780.0,13.16486754]
[1748516536773,1.1837319,108790.0,108780.0,13.16486754]
[1748516536913,1.5563719,108790.0,108780.0,13.16486754]
[1748516538201,1.55638455,108790.0,108780.0,13.16486754]
[1748516540801,1.53638455,108790.0,108780.0,13.16486754]
[1748516541238,1.48638455,108790.0,108780.0,13.16486754]
[1748516541465,1.53638455,108790.0,108780.0,13.16486754]
[1748516542731,1.53641234,108790.0,108780.0,13.16486754]
[1748516543840,1.56413027,108790.0,108780.0,13.16486754]
[1748516544119,1.53641234,108790.0,108780.0,13.09886754]
[1748516544339,1.4940906,108790.0,108780.0,13.09886754]
[1748516544554,1.51291077,108790.0,108780.0,13.09886754]
[1748516545712,1.51291077,108790.0,108780.0,13.13116754]
[1748516545920,1.51291077,108790.0,108780.0,13.16356754]
[1748516546793,1.22843077,108790.0,108780.0,13.16356754]
[1748516546999,1.51283077,108790.0,108780.0,13.16356754]
[1748516547237,1.51283049,108790.0,108780.0,13.16356754]
[1748516548765,1.53514859,108790.0,108780.0,13.16356754]
[1748516554327,1.49283049,108790.0,108780.0,13.09886754]
[1748516554529,6.56274842,108790.0,108780.0,12.7876662]
[1748516554808,6.59105556,108790.0,108780.0,12.7876662]
[1748516554978,6.67490241,108790.0,108780.0,12.7876662]
[1748516555189,6.60428032,108790.0,108780.0,12.7876662]
[1748516555392,6.64657943,108790.0,108780.0,12.7876662]
[1748516555848,6.62657943,108790.0,108780.0,12.7876662]
[1748516556047,6.62657943,108790.0,108780.0,12.76611707]
[1748516556249,6.5988615,108790.0,108780.0,12.76611707]
[1748516557226,6.60804531,108790.0,108780.0,12.76611707]
[1748516559523,6.5657462,108790.0,108780.0,12.48261682]
[1748516560151,6.56563048,108790.0,108780.0,12.48261682]
[1748516561045,6.57041689,108790.0,108780.0,12.48261682]
[1748516562419,6.52895111,108790.0,108780.0,12.48261682]
[1748516562842,6.49146674,108790.0,108780.0,12.48261682]
[1748516563087,6.67530716,108790.0,108780.0,12.48261682]
[1748516563919,6.65420716,108790.0,108780.0,12.48261682]
[1748516564356,6.65418951,108790.0,108780.0,12.48261682]
[1748516564562,6.69562749,108790.0,108780.0,12.48261682]
[1748516566628,6.67452749,108790.0,108780.0,12.48261682]
[1748516568737,6.67450436,108790.0,108780.0,12.48261682]
[1748516569596,6.71671631,108790.0,108780.0,12.45491072]
[1748516570020,6.69671631,108790.0,108780.0,12.45491072]
[1748516571972,6.69670453,108790.0,108780.0,12.45491072]
[1748516573045,6.69670453,108790.0,108780.0,12.37997619]
[1748516573253,6.69670228,108790.0,108780.0,12.37997619]
[1748516574634,6.65449417,108790.0,108780.0,12.37997619]
[1748516575793,6.65449417,108790.0,108780.0,12.35842689]
[1748516576018,6.65437417,108790.0,108780.0,12.35842689]
[1748516577180,6.63437417,108790.0,108780.0,12.35842689]
[1748516577605,6.56184783,108790.0,108780.0,12.42182689]
[1748516577839,6.63433229,108790.0,108780.0,12.42182689]
[1748516581242,6.63433862,108790.0,108780.0,12.42182689]
[1748516581456,6.66205655,108790.0,108780.0,12.35842689]
[1748516582891,6.69138264,108790.0,108780.0,12.35842689]
[1748516583102,6.73359335,108790.0,108780.0,12.35842689]
[1748516583331,7.03359335,108790.0,108780.0,12.35842689]
[1748516584203,7.03469335,108790.0,108780.0,12.33351489]
[1748516584415,7.01358264,108790.0,108780.0,12.21166489]
[1748516584911,6.98427605,108790.0,108780.0,12.11974425]
[1748516585121,7.01360214,108790.0,108780.0,12.07419825]
[1748516585331,7.01360214,108790.0,108780.0,12.02823793]
[1748516585559,6.98427605,108790.0,108780.0,11.98227761]
[1748516585820,6.94207605,108790.0,108780.0,11.98227761]
[1748516586700,6.91435812,108790.0,108780.0,11.98227761]
[1748516587219,6.94368421,108790.0,108780.0,11.98227761]
[1748516587426,6.91435812,108790.0,108780.0,11.98227761]
[1748516587927,6.94368421,108790.0,108780.0,11.98227761]
[1748516588198,6.94368421,108790.0,108780.0,11.98127761]
[1748516588499,6.98590627,108790.0,108780.0,11.98127761]
[1748516588722,6.98790627,108790.0,108780.0,11.98027761]
[1748516588964,6.99290627,108790.0,108780.0,11.98027761]
[1748516589609,6.99290627,108790.0,108780.0,12.01157761]
[1748516590474,6.96358018,108790.0,108780.0,11.96561368]
[1748516590717,6.96358018,108790.0,108780.0,11.93431368]
[1748516591175,6.90135812,108790.0,108780.0,11.88834975]
[1748516591598,6.90135812,108790.0,108780.0,11.95064975]
[1748516591821,6.61711812,108790.0,108780.0,11.95064975]
[1748516592033,6.90127812,108790.0,108780.0,11.95064975]
[1748516593358,6.90132757,108790.0,108780.0,11.95064975]
[1748516594247,6.94357843,108790.0,108780.0,11.95064975]
[1748516594466,6.97290452,108790.0,108780.0,11.95064975]
[1748516594939,6.97290452,108790.0,108780.0,11.92294325]
[1748516595602,6.93065366,108790.0,108780.0,11.92294325]
[1748516595824,6.93065366,108790.0,108780.0,11.9013937]
[1748516597767,6.93070924,108790.0,108780.0,11.9013937]
[1748516598435,6.91070924,108790.0,108780.0,11.9013937]
[1748516598887,6.92508315,108790.0,108780.0,11.9013937]
[1748516600238,6.97712403,108790.0,108780.0,11.9013937]
[1748516601078,6.94779794,108790.0,108780.0,11.9013937]
[1748516601533,7.00959648,108790.0,108780.0,11.9013937]
[1748516601749,6.94779794,108790.0,108780.0,11.9013937]
[1748516602189,6.94795663,108790.0,108780.0,11.9013937]
[1748516603200,6.57563663,108790.0,108780.0,11.9013937]
[1748516603466,6.97708231,108790.0,108780.0,11.9013937]
[1748516604148,6.97707458,108790.0,108780.0,11.9013937]
[1748516604374,6.97703458,108790.0,108780.0,11.9013937]
[1748516605139,6.69299458,108790.0,108780.0,11.9013937]
[1748516605360,6.97703458,108790.0,108780.0,11.9013937]
[1748516606011,1.32296144,108790.0,108780.0,11.9013937]
[1748516606223,1.4996774,108790.0,108780.0,11.9013937]
[1748516606444,1.48912057,108790.0,108780.0,11.9013937]
[1748516606663,1.55711715,108790.0,108780.0,11.9013937]
[1748516610828,1.55705101,108790.0,108780.0,11.9013937]
[1748516611272,6.55705101,108790.0,108780.0,11.87369202]
[1748516611494,6.5985373,108790.0,108780.0,11.87369202]
[1748516611939,6.88566071,108790.0,108780.0,11.84329202]
[1748516612375,6.93769133,108790.0,108780.0,11.84329202]
[1748516612599,6.94247573,108790.0,108780.0,11.84329202]
[1748516613342,6.93329192,108790.0,108780.0,11.87519202]
[1748516613842,6.8612613,108790.0,108780.0,11.87519202]
[1748516614958,6.83015164,108790.0,108780.0,11.87519202]
[1748516615178,6.86127015,108790.0,108780.0,11.87519202]
[1748516615830,6.86127015,108790.0,108780.0,11.85364297]
[1748516616065,7.07183015,108790.0,108780.0,11.85364297]
[1748516616280,7.35579015,108790.0,108780.0,11.85364297]
[1748516618706,7.43554504,108790.0,108780.0,11.78984297]
[1748516619147,7.43554504,108790.0,108780.0,11.85144297]
[1748516619371,7.38350855,108790.0,108780.0,11.85144297]
[1748516619583,7.40782791,108790.0,108780.0,11.85144297]
[1748516620874,7.33579062,108790.0,108780.0,11.85144297]
[1748516621317,7.38782791,108790.0,108780.0,11.85144297]
[1748516621763,7.38782791,108790.0,108780.0,11.78984297]
[1748516622017,6.89322791,108790.0,108780.0,11.78984297]
[1748516622445,6.89322791,108790.0,108780.0,11.82024297]
[1748516622662,6.92094584,108790.0,108780.0,11.82024297]
[1748516622893,6.92094584,108790.0,108780.0,11.78984297]
[1748516623797,6.92094975,108790.0,108780.0,11.78984297]
[1748516625126,6.89155146,108790.0,108780.0,11.78984297]
[1748516625805,6.95230232,108790.0,108780.0,11.46965445]
[1748516626019,6.92399807,108790.0,108780.0,11.46965445]